bitfinex/quotes_ETHUSD_20240711
["timestamp","ask_amount","ask_price","bid_price","bid_amount"]
[1720682418775,1.37622063,3123.0,3121.7,0.80473305]
[1720682419059,1.37622063,3123.0,3121.8,0.55]
[1720682419060,0.26609107,3123.0,3121.8,0.55]
[1720682419559,1.11012729,3122.9,3121.8,0.55]
[1720682421802,2.373,3122.8,3121.7,3.80473305]
[1720682422000,2.373,3122.8,3121.6,0.79823005]
[1720682422791,2.373,3122.8,3121.7,0.0640606]
[1720682423105,2.373,3122.8,3121.8,2.8122]
[1720682423309,2.373,3122.8,3121.9,3.0]
[1720682423496,2.373,3122.8,3122.0,0.55]
[1720682423694,2.373,3122.8,3122.1,0.355]
[1720682423898,2.373,3122.8,3122.2,0.55]
[1720682425437,2.373,3122.8,3122.1,0.355]
[1720682425873,2.373,3122.8,3121.5,3.0]
[1720682426072,2.373,3122.8,3121.5,3.06405999]
[1720682427075,1.11017486,3122.7,3121.5,3.06405999]
[1720682427272,1.11017486,3122.6,3121.6,0.55]
[1720682427472,1.11017486,3122.5,3121.7,0.361406]
[1720682427841,1.11017486,3122.4,3121.7,0.361406]
[1720682428036,1.11017486,3122.7,3121.7,0.361406]
[1720682428217,1.11017486,3122.6,3121.7,0.361406]
[1720682428397,1.11017486,3122.7,3121.7,0.361406]
[1720682428598,1.11017486,3122.7,3121.7,0.42546597]
[1720682429427,1.11009978,3122.6,3121.7,0.42546597]
[1720682429644,1.11009978,3122.5,3121.7,0.42546597]
[1720682429826,2.373,3122.8,3121.7,0.42546597]
[1720682430021,1.11010232,3122.7,3121.8,0.6140599]
[1720682430205,1.11010232,3122.6,3121.8,0.6140599]
[1720682430403,1.11010232,3122.7,3121.8,0.6140599]
[1720682430602,1.11010232,3122.6,3121.8,0.6140599]
[1720682430819,1.11010232,3122.5,3121.8,0.6140599]
[1720682431023,1.11010232,3122.4,3121.8,0.6140599]
[1720682431341,1.11010232,3122.3,3121.8,0.6140599]
[1720682431632,2.373,3122.8,3121.8,0.55]
[1720682431831,1.34741535,3122.7,3121.7,0.42546436]
[1720682432038,1.11011535,3122.6,3121.7,0.42546436]
[1720682432349,1.11011535,3122.6,3121.8,4.46155833]
[1720682432639,2.3872,3123.1,3121.9,3.55]
[1720682432840,2.3872,3123.1,3122.0,0.86519977]
[1720682432841,1.10993803,3123.0,3122.0,0.86519977]
[1720682433045,2.3872,3123.1,3122.1,0.55]
[1720682433046,1.10993803,3122.9,3122.1,0.55]
[1720682433256,2.3872,3123.1,3122.1,0.55]
[1720682433257,1.10992891,3122.8,3122.1,0.55]
[1720682433840,2.3872,3123.1,3122.1,0.55]
[1720682434157,1.10993905,3123.0,3122.1,0.55]
[1720682434508,1.10993905,3122.9,3122.1,0.55]
[1720682434862,1.10993905,3122.8,3122.1,0.55]
[1720682435020,1.10993905,3123.0,3122.1,0.55]
[1720682435353,1.1099414,3122.9,3122.1,0.55]
[1720682435517,1.1099414,3122.8,3122.1,0.55]
[1720682435705,1.1099414,3123.0,3122.1,0.55]
[1720682436619,1.10995336,3122.9,3122.1,0.55]
[1720682436952,1.10995336,3122.8,3121.9,3.0]
[1720682437255,1.10995336,3122.7,3121.5,3.0]
[1720682437418,1.10995336,3123.0,3121.5,3.06405819]
[1720682438524,1.10995336,3123.0,3121.5,3.0]
[1720682438714,0.34971534,3122.9,3121.6,0.73459]
[1720682438950,1.10995336,3122.8,3121.7,0.06405817]
[1720682439343,1.10995336,3122.8,3121.6,0.73459]
[1720682439710,1.10995336,3122.8,3120.6,3.5977648]
[1720682439711,2.2798,3122.7,3121.0,2.4744]
[1720682439824,3.38975336,3122.7,3121.0,2.4744]
[1720682440019,3.39012376,3122.6,3121.0,2.4744]
[1720682440339,1.11032376,3122.5,3121.0,2.4744]
[1720682440651,1.44933614,3122.4,3121.0,2.72184]
[1720682440958,1.11032376,3122.3,3121.0,2.72184]
[1720682441117,2.4764,3122.2,3121.1,3.0]
[1720682441316,1.11032376,3122.1,3121.0,0.24744]
[1720682441515,1.11032376,3122.1,3120.7,4.994]
[1720682443161,1.11032376,3122.1,3120.8,0.55]
[1720682443346,1.11048207,3122.0,3120.8,3.55]
[1720682443683,1.11048207,3121.9,3120.8,3.55]
[1720682443982,1.11048207,3121.8,3120.8,3.55]
[1720682444210,1.11048207,3121.7,3120.9,0.5544]
[1720682444483,1.11048207,3121.6,3121.0,0.55]
[1720682444652,2.4764,3122.2,3121.0,0.55]
[1720682444653,1.11048207,3121.5,3121.0,0.55]
[1720682444853,1.11048207,3121.4,3120.9,0.55]
[1720682445182,1.11048207,3121.3,3121.0,0.355]
[1720682445381,2.4764,3122.2,3121.0,0.355]
[1720682445680,1.11046007,3122.1,3121.0,0.355]
[1720682445977,1.11046007,3122.0,3121.0,0.355]
[1720682446143,1.11046007,3121.9,3121.0,0.355]
[1720682446346,1.11046007,3121.8,3121.0,0.355]
[1720682446669,2.4764,3122.2,3121.0,0.355]
[1720682446965,1.35808157,3122.1,3121.0,0.355]
[1720682447144,1.11044157,3122.0,3121.0,0.355]
[1720682448314,1.11044157,3122.0,3120.8,3.0]
[1720682448604,1.11044157,3122.0,3120.6,2.41487981]
[1720682449188,1.11044157,3122.0,3120.6,2.3508]
[1720682449881,2.2575,3121.9,3120.7,0.55]
[1720682450280,1.11053747,3121.8,3120.7,0.55]
[1720682450502,1.44734122,3121.7,3120.7,0.55]
[1720682450819,1.11053747,3121.6,3120.7,0.55]
[1720682451106,0.33680375,3121.7,3120.7,0.55]
[1720682451107,1.11053747,3121.5,3120.7,0.55]
[1720682451279,1.11053747,3121.4,3120.6,0.05]
[1720682451472,1.11053747,3121.6,3120.6,0.05]
[1720682452125,2.4752,3121.5,3120.6,0.05]
[1720682452276,1.46911122,3121.4,3120.6,0.05]
[1720682452484,1.11053747,3121.3,3120.6,0.05]
[1720682453629,1.1106533,3121.2,3120.6,0.05]
[1720682453915,1.1106533,3121.1,3120.6,0.05]
[1720682454127,1.1106533,3121.3,3120.6,0.05]
[1720682454330,1.1106533,3121.2,3120.6,0.05]
[1720682454484,1.1106533,3121.1,3120.6,0.05]
[1720682454827,1.1106533,3121.0,3120.6,0.05]
[1720682454977,0.39444271,3121.3,3120.6,0.05]
[1720682454978,1.1106533,3120.9,3120.6,0.05]
[1720682455176,1.1106533,3121.2,3120.6,0.05]
[1720682456049,2.4964,3121.1,3120.6,0.05]
[1720682456203,1.1106533,3121.0,3120.6,0.05]
[1720682456856,2.8965496,3121.1,3120.6,0.05]
[1720682456857,1.11077853,3120.9,3120.6,0.05]
[1720682457106,1.11077853,3120.8,3120.6,0.05]
[1720682457311,1.11077853,3121.0,3120.6,0.05]
[1720682457555,1.11077853,3120.9,3120.6,0.05]
[1720682457727,1.11077853,3120.8,3120.6,0.05]
[1720682458046,1.11077853,3120.7,3120.6,0.05]
[1720682460247,0.40073281,3121.0,3120.6,0.05]
[1720682460449,1.1108169,3120.7,3120.6,0.05]
[1720682460612,0.40073281,3121.0,3120.6,0.05]
[1720682460811,1.11081655,3120.9,3120.6,0.05]
[1720682461138,1.11081655,3120.8,3120.6,0.05]
[1720682461455,1.11081655,3120.7,3120.6,0.05]
[1720682462746,0.40073281,3121.0,3120.6,0.05]
[1720682462951,1.11081445,3120.7,3120.6,0.05]
[1720682463170,7.44,3122.0,3120.6,2.9469]
[1720682463171,9.8519,3122.0,3120.6,2.9469]
[1720682463330,1.11056646,3121.9,3120.7,3.61407477]
[1720682463526,1.11056646,3121.8,3120.8,0.65609748]
[1720682463724,1.11056646,3121.7,3120.8,0.65609748]
[1720682463955,1.11056646,3121.6,3120.8,0.65609748]
[1720682464172,1.11056646,3121.5,3120.8,0.65609748]
[1720682464340,1.11056646,3121.4,3120.8,0.65609748]
[1720682464651,2.4119,3122.0,3120.9,0.42060975]
[1720682464860,1.11048221,3121.9,3120.9,0.42060975]
[1720682465064,1.11048221,3121.8,3120.9,0.42060975]
[1720682465360,1.11048221,3121.7,3120.9,0.42060975]
[1720682465553,1.11048221,3121.9,3120.7,3.0]
[1720682465733,1.11048221,3121.8,3120.6,2.3969]
[1720682465933,1.11048221,3121.9,3120.6,0.05]
[1720682466253,2.4737,3121.6,3120.6,0.05]
[1720682466418,1.11060628,3121.5,3120.6,0.05]
[1720682467325,1.11068293,3121.4,3120.6,0.05]
[1720682467526,1.11068293,3121.3,3120.6,0.05]
[1720682467731,1.11068293,3121.2,3120.6,0.05]
[1720682468033,1.11068293,3121.1,3120.6,0.05]
[1720682468228,1.11068293,3121.5,3120.6,2.5482]
[1720682468364,1.11068293,3121.4,3120.7,3.0]
[1720682468682,1.11068293,3121.3,3120.7,3.0]
[1720682468884,1.11068293,3121.2,3120.7,3.0]
[1720682469074,1.11068293,3121.1,3120.6,0.05]
[1720682469257,1.11068293,3121.0,3120.6,0.05]
[1720682469588,1.11068293,3120.9,3120.6,0.05]
[1720682469753,1.11065826,3120.8,3120.6,0.05]
[1720682469961,1.11065826,3120.7,3120.6,0.05]
[1720682470164,1.11065826,3121.4,3120.6,0.05]
[1720682470490,1.51377109,3121.4,3120.6,0.05]
[1720682470649,1.11065826,3121.3,3120.6,0.05]
[1720682473184,1.11067967,3121.2,3120.6,0.05]
[1720682473388,1.11067967,3121.1,3120.6,0.05]
[1720682473564,1.11067967,3121.3,3120.6,0.05]
[1720682473751,1.11067967,3121.2,3120.6,0.05]
[1720682473949,0.40311283,3121.4,3120.6,0.05]
[1720682473950,1.11067967,3121.3,3120.6,0.05]
[1720682474182,1.11067967,3121.2,3120.6,0.05]
[1720682474388,1.11067967,3121.1,3120.6,0.05]
[1720682474557,1.11067967,3121.0,3120.7,2.9645]
[1720682474785,2.2864,3122.4,3120.8,0.06407721]
[1720682475084,1.11044479,3122.3,3120.8,3.06407721]
[1720682475296,1.11044479,3122.2,3120.9,1.15285772]
[1720682475456,1.11044479,3122.1,3120.9,1.15285772]
[1720682475652,1.11044479,3122.0,3120.9,1.15285772]
[1720682475884,1.11044479,3121.9,3120.9,1.15285772]
[1720682476184,1.11044479,3121.8,3120.9,1.15285772]
[1720682476385,0.44408448,3122.3,3121.0,0.41528577]
[1720682476559,1.11040241,3122.2,3121.0,0.41528577]
[1720682476886,1.11040241,3122.1,3121.0,0.41528577]
[1720682477086,1.11040241,3122.2,3121.1,2.2551]
[1720682477381,1.11040241,3122.1,3121.1,5.2551]
[1720682477587,2.2864,3122.4,3121.1,5.93742435]
[1720682477588,1.994,3122.2,3121.1,5.93742435]
[1720682477761,1.11040241,3122.1,3121.1,5.93742435]
[1720682477958,1.11040241,3122.0,3121.1,3.0]
[1720682478162,2.2965,3122.0,3120.6,2.4495]
[1720682478363,1.11040241,3121.9,3120.6,2.4495]
[1720682478545,1.11040241,3121.8,3120.6,2.4495]
[1720682478762,1.11040241,3121.7,3120.6,2.4495]
[1720682479056,1.11040241,3121.6,3120.6,3.70081164]
[1720682479255,1.994,3121.8,3120.6,0.05]
[1720682479451,1.11040241,3121.7,3120.6,0.05]
[1720682479660,1.994,3121.8,3120.6,0.05]
[1720682479969,1.11062847,3121.7,3120.6,0.05]
[1720682480156,0.31046285,3121.6,3120.6,0.05]
[1720682480360,3.51702847,3121.5,3120.6,0.05]
[1720682480568,1.11062847,3121.4,3120.6,0.05]
[1720682480770,1.11062847,3121.3,3120.6,0.05]
[1720682480987,1.11062847,3121.4,3120.6,0.05]
[1720682481297,2.4064,3121.5,3120.6,0.05]
[1720682481298,1.46233132,3121.3,3120.6,0.05]
[1720682481492,1.11062847,3121.2,3120.6,0.05]
[1720682481890,1.11062847,3121.2,3120.6,0.045]
[1720682482313,1.11062847,3121.1,3120.6,0.045]
[1720682483261,1.11084805,3121.0,3120.6,0.045]
[1720682483491,1.11084805,3120.9,3120.6,0.045]
[1720682483668,1.11084805,3120.8,3120.6,0.045]
[1720682483978,1.11084805,3120.7,3120.0,3.0]
[1720682484225,2.4064,3121.5,3120.1,0.54958]
[1720682484508,2.4064,3121.5,3120.0,0.06409343]
[1720682484509,1.11074031,3121.4,3120.0,3.0]
[1720682484822,1.11074031,3121.3,3120.1,0.06409058]
[1720682485104,1.11074031,3121.4,3120.2,2.9776]
[1720682485286,1.11074031,3121.3,3120.3,3.06408666]
[1720682485493,1.11074031,3121.2,3120.4,0.60416867]
[1720682485701,1.11074031,3121.1,3120.4,0.60416867]
[1720682485910,1.994,3121.8,3120.4,0.60416867]
[1720682485911,1.11074031,3121.0,3120.4,0.60416867]
[1720682486138,1.11074031,3120.9,3120.4,0.60416867]
[1720682486417,1.11074031,3120.8,3120.4,0.60416867]
[1720682486574,1.11065517,3120.7,3120.4,0.60416867]
[1720682486784,1.11065517,3120.6,3120.3,3.0]
[1720682486986,1.11065517,3120.5,3120.3,3.0]
[1720682487172,1.11065517,3121.5,3120.3,3.0]
[1720682487444,2.4761,3121.4,3120.3,3.0]
[1720682487633,1.80743069,3121.3,3120.2,2.4276]
[1720682487967,1.11065517,3121.2,3120.2,2.4276]
[1720682488703,0.33581784,3121.1,3120.2,2.4276]
[1720682488916,1.11065517,3121.0,3120.2,2.4276]
[1720682489922,0.33581784,3121.1,3120.2,2.4276]
[1720682490131,1.11074749,3121.0,3120.2,2.67036]
[1720682490293,0.33581784,3121.1,3120.3,3.06409411]
[1720682490294,1.11074749,3120.9,3120.3,3.06409411]
[1720682490522,1.11074749,3120.8,3120.4,2.8763]
[1720682490705,0.33581784,3121.1,3120.6,2.2744]
[1720682491043,1.11048377,3121.0,3120.7,1.07744]
[1720682491199,0.33581784,3121.1,3120.7,4.07744]
[1720682491412,1.11046863,3121.0,3120.7,4.07744]
[1720682491642,0.33581784,3121.1,3120.7,4.07744]
[1720682491795,1.11046774,3121.0,3120.7,4.07744]
[1720682491999,0.33581784,3121.1,3120.8,0.635184]
[1720682492242,1.11046742,3121.0,3120.9,0.55]
[1720682493419,1.11044941,3121.0,3120.9,0.55]
[1720682493858,0.33581784,3121.1,3120.9,2.8662]
[1720682494055,0.33581784,3121.1,3121.0,3.0]
[1720682494353,0.33581784,3121.1,3121.0,3.58662]
[1720682494857,0.33581784,3121.1,3121.0,3.0]
[1720682495161,0.33581784,3121.1,3120.9,2.3162]
[1720682495316,1.11043622,3121.0,3120.9,2.3162]
[1720682496720,1.11046757,3121.0,3120.9,2.3162]
[1720682496922,0.33581784,3121.1,3120.6,3.0]
[1720682497225,1.11052723,3121.0,3120.6,3.0]
[1720682497419,1.11052723,3120.9,3120.6,3.0]
[1720682497624,1.11052723,3121.0,3120.6,3.0]
[1720682497820,1.11052723,3120.9,3120.6,3.0]
[1720682498049,1.11052723,3120.8,3120.6,4.23343164]
[1720682498255,1.11052723,3121.0,3120.6,4.23343164]
[1720682498559,1.11053561,3120.9,3120.6,4.23343164]
[1720682498726,1.11053561,3120.8,3120.6,4.23343164]
[1720682499053,0.33581784,3121.1,3120.6,4.23343164]
[1720682499300,1.11053681,3121.0,3120.6,4.23343164]
[1720682499422,1.11053681,3120.9,3120.6,4.23343164]
[1720682499616,1.11053681,3120.8,3120.6,4.23343164]
[1720682499822,0.33581784,3121.1,3120.6,4.23343164]
[1720682500031,1.11054232,3121.0,3120.7,1.12970481]
[1720682500332,0.33581784,3121.1,3120.7,1.12970481]
[1720682500333,1.11054232,3120.9,3120.7,1.12970481]
[1720682500555,0.33581784,3121.1,3120.7,1.12970481]
[1720682500872,1.11047528,3121.0,3120.6,0.06407766]
[1720682501039,0.33581784,3121.1,3120.7,0.55]
[1720682501389,1.11046843,3121.0,3120.7,0.55]
[1720682501863,1.11051869,3120.9,3120.7,0.55]
[1720682502067,0.33581784,3121.1,3120.7,0.355]
[1720682502380,1.11050184,3121.0,3120.7,0.355]
[1720682502673,0.33581784,3121.1,3120.7,0.355]
[1720682502842,1.1104844,3121.0,3120.7,0.355]
[1720682503062,0.33581784,3121.1,3120.7,0.355]
[1720682503237,1.11049469,3121.0,3120.7,0.355]
[1720682503437,0.33581784,3121.1,3120.7,0.355]
[1720682503754,1.1104989,3121.0,3120.7,0.355]
[1720682503952,0.33581784,3121.1,3120.7,0.355]
[1720682504152,1.11049831,3121.0,3120.7,0.355]
[1720682504377,0.33581784,3121.1,3120.7,0.355]
[1720682504671,1.11048691,3121.0,3120.7,0.355]
[1720682504878,0.33581784,3121.1,3120.7,0.355]
[1720682505088,1.11050406,3121.0,3120.7,0.355]
[1720682505261,0.33581784,3121.1,3120.7,0.355]
[1720682505463,1.11050948,3121.0,3120.7,0.355]
[1720682505668,1.11050948,3120.9,3120.8,0.06407932]
[1720682505865,0.33581784,3121.1,3120.8,2.8061]
[1720682506053,0.33581784,3121.1,3120.9,3.86611]
[1720682508372,0.33581784,3121.1,3120.9,3.0]
[1720682508764,0.33581784,3121.1,3120.8,5.2561]
[1720682509639,0.33581784,3121.1,3120.8,3.0]
[1720682509974,1.1104936,3121.0,3120.7,0.355]
[1720682510198,0.33581784,3121.1,3120.7,0.355]
[1720682510695,1.11049218,3121.0,3120.7,0.355]
[1720682510986,0.33581784,3121.1,3120.7,0.355]
[1720682511171,1.11051683,3121.0,3120.7,0.355]
[1720682511373,0.33581784,3121.1,3120.7,0.355]
[1720682511586,1.1105168,3121.0,3120.7,0.355]
[1720682511878,0.33581784,3121.1,3120.7,0.355]
[1720682512084,1.11048847,3121.0,3120.7,0.355]
[1720682512276,2.4661,3121.8,3120.7,0.355]
[1720682512500,0.33572298,3121.6,3120.8,0.55]
[1720682512654,1.1104325,3121.5,3120.8,0.61407283]
[1720682512855,1.1104325,3121.4,3120.8,0.55]
[1720682513171,1.1104325,3121.3,3120.8,0.55]
[1720682513372,1.1104325,3121.2,3120.8,0.55]
[1720682513541,0.33572298,3121.6,3120.8,0.55]
[1720682513748,1.11040805,3121.5,3120.8,0.55]
[1720682513987,1.11041199,3121.4,3120.8,0.55]
[1720682514163,1.11041199,3121.3,3120.8,0.55]
[1720682514364,1.11041199,3121.2,3120.8,0.55]
[1720682514542,1.11041199,3121.1,3120.8,0.61407448]
[1720682514857,0.33572298,3121.6,3120.9,2.392]
[1720682515053,1.11032245,3121.5,3121.0,0.8442]
[1720682515376,1.11032245,3121.4,3121.0,0.8442]
[1720682515551,1.11032245,3121.5,3121.0,3.8442]
[1720682516683,0.33572298,3121.6,3121.0,3.8442]
[1720682516857,0.33572298,3121.6,3121.0,3.90825968]
[1720682517057,0.33572298,3121.6,3121.1,0.82942597]
[1720682517266,0.33572298,3121.6,3121.2,0.55]
[1720682518938,0.33572298,3121.6,3121.3,2.48685927]
[1720682519148,2.4168,3122.6,3121.4,0.55]
[1720682519340,2.4168,3122.6,3121.4,3.55]
[1720682519341,1.11018175,3122.5,3121.4,3.55]
[1720682519547,0.33566033,3122.2,3121.5,0.90368593]
[1720682519782,1.11018175,3122.1,3121.6,0.55]
[1720682520354,1.11018175,3122.1,3121.4,3.0]
[1720682520653,3.41439618,3122.0,3121.3,3.0]
[1720682520885,1.11029618,3121.9,3121.3,3.0]
[1720682521698,1.11029618,3121.9,3121.3,3.06407051]
[1720682521841,1.11029618,3122.1,3121.3,3.06407051]
[1720682522047,0.33566033,3122.2,3121.3,3.06407051]
[1720682522048,1.11029618,3122.0,3121.3,3.06407051]
[1720682522248,1.11029618,3121.9,3121.3,3.06406938]
[1720682522443,1.11029618,3121.8,3121.3,4.07683796]
[1720682522754,1.11029618,3121.7,3121.3,4.01276858]
[1720682522954,1.11029618,3121.6,3121.3,4.01276858]
[1720682523153,0.33566033,3122.2,3121.3,4.01276858]
[1720682523381,1.11025671,3121.5,3121.3,4.01276858]
[1720682523681,0.33566033,3122.2,3121.4,1.1076385]
[1720682523842,1.11032491,3122.1,3121.4,1.1076385]
[1720682524043,1.11032491,3122.0,3121.4,1.1076385]
[1720682524264,1.11032491,3121.9,3121.3,3.0]
[1720682524484,0.33566033,3122.2,3121.3,3.0]
[1720682524485,1.11032491,3121.8,3121.3,3.0]
[1720682524645,1.11032491,3121.7,3121.3,3.0]
[1720682524849,1.11032491,3121.6,3121.3,3.0]
[1720682525143,1.11032491,3121.5,3121.3,3.0]
[1720682525350,1.11032491,3121.4,3121.3,3.0]
[1720682526357,1.11032491,3122.1,3121.3,3.0]
[1720682526548,0.33566033,3122.2,3121.3,3.0]
[1720682526753,1.37438759,3122.1,3121.3,3.0]
[1720682526947,1.11041172,3122.0,3121.2,7.06361644]
[1720682527284,0.26397603,3122.1,3121.2,7.06361644]
[1720682527285,3.56961172,3121.9,3121.2,7.06361644]
[1720682527489,1.11041172,3121.8,3121.2,7.06361644]
[1720682528568,1.11041172,3121.8,3121.3,3.0]
[1720682529757,1.46737289,3121.8,3121.3,3.0]
[1720682529956,0.35696117,3121.8,3121.3,3.0]
[1720682530174,1.11043038,3121.7,3121.3,3.0]
[1720682530388,1.11043038,3121.6,3121.3,3.0]
[1720682530609,0.35696117,3121.8,3121.3,3.0]
[1720682530610,1.11043038,3121.5,3121.3,3.0]
[1720682530761,1.11043038,3121.4,3121.3,3.0]
[1720682531282,1.11043038,3121.4,3121.3,4.00636164]
[1720682533257,0.33566033,3122.2,3121.3,4.00636164]
[1720682533692,1.11033956,3122.1,3121.3,4.00636164]
[1720682533863,1.11033956,3122.0,3121.3,4.00636164]
[1720682534070,1.11033956,3122.1,3121.3,4.00636164]
[1720682535397,1.11033956,3122.1,3121.3,3.0]
[1720682539016,1.11033956,3122.2,3121.3,3.0]
[1720682539334,1.11033956,3122.1,3121.3,3.0]
[1720682539478,1.11033956,3122.2,3121.3,3.0]
[1720682539683,1.46006352,3122.1,3121.3,3.0]
[1720682539908,1.11033956,3122.0,3121.3,3.0]
[1720682540099,0.34972396,3122.1,3121.3,3.0]
[1720682540308,1.11036716,3122.0,3121.3,3.0]
[1720682540631,1.11036716,3121.9,3121.3,3.0]
[1720682540980,1.11036716,3121.8,3121.3,3.0]
[1720682541184,1.11036716,3121.7,3121.3,3.0]
[1720682541503,1.11036716,3121.6,3121.3,3.0]
[1720682541710,1.11036716,3121.5,3121.3,4.00636164]
[1720682541892,1.11036716,3121.4,3121.3,4.00636164]
[1720682542099,1.11036716,3121.4,3121.3,3.0]
[1720682542298,1.11036716,3121.4,3120.9,3.06406898]
[1720682542495,1.11036716,3121.3,3121.0,0.55]
[1720682542722,2.3849,3122.9,3121.1,2.36086981]
[1720682542925,1.34864666,3122.8,3121.4,1.994]
[1720682543153,1.11015666,3122.7,3121.5,2.36085231]
[1720682543414,0.23849,3122.8,3121.5,2.36085231]
[1720682543415,1.11015666,3122.6,3121.6,0.55]
[1720682543642,1.11003464,3122.5,3121.7,0.06405233]
[1720682543784,1.11003617,3122.4,3121.8,3.27225752]
[1720682543986,2.3849,3123.3,3121.8,3.27225752]
[1720682543987,1.11003617,3122.3,3121.9,3.55]
[1720682544181,2.3849,3123.3,3122.0,0.06404949]
[1720682544413,2.3849,3123.3,3122.1,0.55]
[1720682544595,1.10993515,3123.2,3122.1,0.55]
[1720682544780,1.45941867,3123.1,3122.1,0.55]
[1720682545095,1.10993515,3123.0,3122.0,0.55]
[1720682545308,1.10993515,3123.0,3121.9,3.0]
[1720682545528,2.4932,3122.9,3121.6,3.0]
[1720682545730,1.10993515,3122.8,3121.6,3.55]
[1720682546028,0.36031352,3122.7,3121.6,3.55]
[1720682546239,1.10993515,3122.6,3121.6,3.55]
[1720682547027,0.36031352,3122.7,3121.6,3.0]
[1720682547206,3.6033648,3122.6,3121.6,3.0]
[1720682547528,2.4932,3122.4,3121.6,3.0]
[1720682547740,1.47050128,3122.3,3121.6,3.0]
[1720682547882,1.47050128,3122.3,3121.5,7.06361644]
[1720682548089,1.1101648,3122.2,3121.5,7.06361644]
[1720682550327,0.36033648,3122.3,3121.5,7.06361644]
[1720682550510,1.11034521,3122.1,3121.5,7.06361644]
[1720682550717,0.36033648,3122.3,3121.5,7.06361644]
[1720682550718,1.11034521,3122.0,3121.5,7.06361644]
[1720682550911,1.11034521,3121.9,3121.5,7.06361644]
[1720682551123,1.11034521,3121.8,3121.3,2.3614]
[1720682551324,1.11034521,3121.7,3121.4,0.55]
[1720682551534,1.11034521,3121.6,3121.4,3.55]
[1720682551821,2.4932,3122.4,3121.4,3.55]
[1720682552027,1.11027594,3122.3,3121.5,0.06406213]
[1720682552327,1.11027594,3122.2,3121.5,0.66160834]
[1720682552505,1.11027594,3122.1,3121.5,0.66160834]
[1720682552700,1.11027594,3122.0,3121.5,0.66160834]
[1720682553016,1.11027594,3121.9,3121.6,0.55]
[1720682553326,2.4056,3122.7,3121.6,0.55]
[1720682553525,1.35071622,3122.6,3121.6,0.55]
[1720682553727,0.24056,3122.6,3121.6,0.55]
[1720682553898,1.11017539,3122.5,3121.6,0.55]
[1720682554098,1.11017539,3122.4,3121.7,0.06405826]
[1720682554302,1.11017539,3122.3,3121.7,0.06405826]
[1720682554501,1.11017539,3122.2,3121.7,0.06405826]
[1720682554711,1.11017539,3122.1,3121.7,0.06405826]
[1720682555028,1.11017539,3122.0,3121.6,0.55]
[1720682555189,1.11017539,3121.9,3121.6,0.55]
[1720682555390,0.33566731,3123.0,3121.6,0.55]
[1720682555634,1.11016478,3122.9,3122.1,2.2523]
[1720682555836,1.11016478,3122.8,3122.2,1.49368353]
[1720682556034,2.324,3123.6,3122.4,1.994]
[1720682556201,1.10980385,3123.5,3122.5,0.61403712]
[1720682556535,1.10980385,3123.4,3122.5,0.61403712]
[1720682556701,1.10980385,3123.5,3122.5,3.61403712]
[1720682556898,1.10980385,3123.5,3122.6,0.56080371]
[1720682557125,2.324,3123.6,3122.6,0.56080371]
[1720682557303,1.10980773,3123.5,3122.6,0.56080371]
[1720682557517,1.10980773,3123.4,3122.6,0.56080371]
[1720682557711,2.324,3123.6,3122.5,3.55]
[1720682557712,1.10980773,3123.3,3122.5,3.55]
[1720682558033,1.10980773,3123.2,3122.5,0.55]
[1720682558199,1.10980773,3123.5,3122.4,0.55]
[1720682559403,1.10980773,3123.5,3122.5,0.06403983]
[1720682559905,1.10980773,3123.5,3122.5,0.42544381]
[1720682560609,1.10980746,3123.4,3122.6,0.55]
[1720682560815,1.10980746,3123.3,3122.7,2.33943695]
[1720682561114,3.57260746,3123.2,3122.7,3.0]
[1720682561435,1.10980746,3123.1,3122.8,0.06403698]
[1720682561601,1.10980746,3123.0,3122.7,2.4413]
[1720682561803,2.49495368,3123.7,3122.7,5.4413]
[1720682562130,1.10977793,3123.6,3122.7,5.4413]
[1720682562346,1.10977793,3123.5,3122.7,5.4413]
[1720682562499,1.10977793,3123.5,3122.8,0.06403698]
[1720682562702,1.10977793,3123.5,3122.8,3.06403698]
[1720682563335,1.10977793,3123.6,3122.9,0.55]
[1720682563533,1.10977793,3123.5,3123.0,0.42542729]
[1720682563828,0.03215368,3123.7,3123.0,0.42542729]
[1720682564025,1.10959794,3123.6,3123.1,0.55]
[1720682564254,0.03215368,3123.7,3123.1,0.55]
[1720682564622,0.03215368,3123.7,3123.2,0.06402325]
[1720682564826,0.03215368,3123.7,3123.3,0.55]
[1720682565256,0.03215368,3123.7,3123.1,0.55]
[1720682565469,0.03215368,3123.7,3123.2,2.4984]
[1720682565683,0.03215368,3123.7,3123.3,0.91886327]
[1720682565958,0.03215368,3123.7,3123.3,3.85484]
[1720682566764,0.03215368,3123.7,3123.3,0.85484]
[1720682566929,0.03215368,3123.7,3123.3,0.55]
[1720682567129,0.03215368,3123.7,3123.1,0.55]
[1720682567565,1.10967396,3123.6,3123.0,3.3614037]
[1720682567761,0.03215368,3123.7,3123.0,0.3614037]
[1720682567963,1.1096567,3123.6,3122.8,0.06402941]
[1720682568129,0.03215368,3123.7,3122.9,0.55]
[1720682568362,0.03215368,3123.7,3123.0,0.06402941]
[1720682568769,0.03215368,3123.7,3123.1,0.55]
[1720682569072,0.03215368,3123.7,3123.2,2.51672304]
[1720682569270,0.03215368,3123.7,3123.3,0.92069536]
[1720682569451,0.03215368,3123.7,3123.3,3.92069536]
[1720682571156,0.03215368,3123.7,3123.3,3.8566723]
[1720682571992,0.03215368,3123.7,3123.3,3.3066723]
[1720682572296,0.03215368,3123.7,3123.3,3.0]
[1720682572594,0.03215368,3123.7,3122.9,3.06402976]
[1720682573564,0.03215368,3123.7,3123.0,0.55]
[1720682574277,0.03215368,3123.7,3123.2,1.994]
[1720682574464,0.03215368,3123.7,3123.3,0.98335298]
[1720682574663,0.03215368,3123.7,3123.3,3.98335298]
[1720682575094,0.03215368,3123.7,3123.3,4.04737111]
[1720682577992,0.03215368,3123.7,3123.3,3.98335298]
[1720682579394,0.03215368,3123.7,3123.3,4.04737355]